Cogmind - Beta 12 @@@ ROGUE MODE // 2024.01.28 @ 16:53:10 Player: VikingFarmer Result: Destroyed by G-34 Mercenary with Small Laser Performance ------------- Evolutions (1) 500 Regions Visited (2) 400 Robots Destroyed (11) 55 Value Destroyed (140) 140 Prototype IDs (0) 0 Alien Tech Used (0) 0 Bonus (0) 0 TOTAL SCORE: 1095 Bonus ------- None Cogmind --------- Core Integrity 0/400 Matter 300/300 Energy 98/100 System Corruption 0% Temperature Cool (12) Movement Core (50) Location -9/Materials Parts ------- > --- POWER (1) -------- (None) > --- PROPULSION (3) --- (None) > --- UTILITY (3) ------ Visual Processing Unit > --- WEAPON (2) ------- (None) > --- INVENTORY (5) ---- Light Ion Engine Aluminum Leg Wheel Peak State ------------ > --- POWER ------------ Ion Engine > --- PROPULSION ------- Aluminum Leg Aluminum Leg > --- UTILITY ---------- Small Storage Unit > --- WEAPON ----------- Assault Rifle Light Assault Rifle > --- INVENTORY -------- (None) [Rating: 6] Favorites ----------- Power Ion Engine Engine Ion Engine Propulsion Aluminum Leg Leg Aluminum Leg Flight Unit Flight Unit Utility Small Storage Unit Storage Small Storage Unit Processor Visual Processing Unit Weapon Light Assault Rifle Ballistic Gun Light Assault Rifle Build | -11 -10 -9 ------- Run | Jun Mat Mat Slots Evolved 2 | . . 2 Power . | . . . Propulsion 1 | . . 1 Utility 1 | . . 1 Weapon . | . . . Parts Attached 12 | 6 3 3 Power 2 | 1 1 . Engine 2 | 1 1 . Core . | . . . Reactor . | . . . Propulsion 5 | 2 2 1 Treads . | . . . Leg 2 | 2 . . Wheel . | . . . Hover . | . . . Flight 3 | . 2 1 Utility 2 | 1 . 1 Device . | . . . Storage 1 | 1 . . Processor 1 | . . 1 Hackware . | . . . Protection . | . . . Artifact . | . . . Weapon 3 | 2 . 1 Energy Gun . | . . . Energy Cannon . | . . . Ballistic Gun 3 | 2 . 1 Ballistic Cannon . | . . . Launcher . | . . . Special Weapon . | . . . Impact Weapon . | . . . Slashing Weapon . | . . . Piercing Weapon . | . . . Special Melee Weapon . | . . . Unidentified Prototypes . | . . . Parts Lost 6 | . . 6 Power 1 | . . 1 Propulsion 3 | . . 3 Utility . | . . . Weapon 2 | . . 2 Highest Loss Streak 6 | . . 6 To Critical Strikes . | . . . Average Slot Usage (%) 60 | . 79 30 Engine 10 | . 13 5 Leg 14 | . 23 . Flight 6 | . 4 10 Storage 7 | . 11 . Processor 1 | . . 4 Ballistic Gun 19 | . 25 10 Naked Turns . | . . . Heaviest Build 13 | 13 13 6 Greatest Support 20 | 20 20 8 Greatest Overweight (x) 1 | . . 1 Average Overweight (x) . | . . . Largest Inventory Capacity 8 | 8 8 5 Average Capacity 6 | 7 7 5 Most Carried 6 | 5 6 4 Average Carried 2 | 1 2 3 Final Capacity 8 | 8 5 5 Final Carried 4 | 2 4 3 Class Distribution -------------------- 100% | Mutant Dominant Class ---------------- Mutant | -10/Materials Mutant | -9/Materials Resources | -11 -10 -9 ----------- Run | Jun Mat Mat Matter Collected 353 | 212 141 . Remotely . | . . . Salvage Created 227 | . 209 18 Parts 20 | . 17 3 Haulers Intercepted . | . . . Recyclers Shooed 1 | . 1 . Parts Field Recycled . | . . . Retrieved Matter . | . . . Parts Self-Destructed . | . . . Prevented . | . . . Kills | -11 -10 -9 ------- Run | Jun Mat Mat Combat Hostiles Destroyed 9 | . 8 1 Guns 9 | . 8 1 Classes Destroyed 3 | . 3 . Worker 2 | . 2 . Swarmer 7 | . 6 1 Grunt 2 | . 2 . Best Kill Streak 9 | . 9 1 Combat Bots Only 7 | . 7 1 Max Kills in Single Turn 2 | . 2 1 Gunslinging . | . . . Exploded . | . . . Melee . | . . . Uniques/NPCs Destroyed . | . . . Combat | -11 -10 -9 -------- Run | Jun Mat Mat Damage Taken 988 | . 403 585 Core 511 | . 108 403 Absorbed by Shields . | . . . Core Remaining (%) 78 | 100 56 . Volleys Fired 25 | . 18 7 Largest 2 | . 2 2 Hottest 40 | . 40 40 Shots Fired 45 | . 36 9 Gun 45 | . 36 9 Cannon . | . . . Launcher . | . . . Special . | . . . Kinetic 45 | . 36 9 Thermal . | . . . Explosive . | . . . Electromagnetic . | . . . Robot Hit Streak 5 | . 5 5 Robot Miss Streak 5 | . 5 1 Penetration Max . | . . . Secondary Targets 4 | . 3 1 Max Gunslinging Chain 1 | . 1 1 Shots Hit Robots 21 | . 14 7 Core Hits 16 | . 13 3 Critical Kills 1 | . 1 . Critical Parts Destroyed . | . . . Critical Strikes 1 | . 1 . Destroy 1 | . 1 . Melee Attacks . | . . . Impact . | . . . Slashing . | . . . Piercing . | . . . Sneak Attacks . | . . . Combat Hostiles . | . . . Follow-up Attacks . | . . . Damage Inflicted 262 | . 194 68 Guns 253 | . 194 59 Cannons . | . . . Explosions . | . . . Melee . | . . . Ramming 9 | . . 9 Kinetic 253 | . 194 59 Thermal . | . . . Explosive . | . . . Electromagnetic . | . . . Impact . | . . . Slashing . | . . . Piercing . | . . . Highest Corruption . | . . . Average Corruption . | . . . Corruption Purged . | . . . Corruption Blocked . | . . . Overload Shots . | . . . Overflow Damage . | . . . Projectiles . | . . . Explosions . | . . . Melee . | . . . Knockbacks . | . . . Impact . | . . . Kinetic . | . . . Secondary . | . . . Self-Inflicted Damage 4 | . . 4 Shots . | . . . Rammed 6 | . . 6 Targets Rammed 6 | . . 6 Kicked . | . . . Crushed . | . . . Highest Temperature 12 | . 12 10 Average Temperature 7 | . 6 8 Received Heat Transfer 228 | . 42 186 Siege Activations . | . . . Robots Corrupted . | . . . Combat Hostiles . | . . . Parts Fried . | . . . Impact Corruptions . | . . . Robots Melted . | . . . Combat Hostiles . | . . . Parts Melted . | . . . Heat Transferred . | . . . Parts Sabotaged . | . . . Parts Stolen . | . . . Parts Stripped . | . . . Power Chain Reactions . | . . . Missiles Intercepted . | . . . Alert | -11 -10 -9 ------- Run | Jun Mat Mat Peak Influence 219 | . 219 152 Initial 92 | . . 92 Average 70 | . 81 109 Maximum Alert Level 1 | . 1 . Low Security (%) 90 | 100 78 100 Level 1 10 | . 21 . Level 2 . | . . . Level 3 . | . . . Level 4 . | . . . Level 5 . | . . . High Security . | . . . Max Security . | . . . Squads Dispatched 1 | . 1 . Investigation . | . . . Extermination . | . . . Reinforcement 1 | . 1 . Assault . | . . . Garrison . | . . . Intercept . | . . . Searches Triggered . | . . . Construction Impeded . | . . . Haulers Reinforced . | . . . Active Scanning Responses . | . . . Cargo Convoy Interrupts . | . . . Stealth | -11 -10 -9 --------- Run | Jun Mat Mat Distress Signals 1 | . . 1 Communications Jammed . | . . . Distress Signals . | . . . Times Spotted 22 | . 12 10 Peak Tracking Total 10 | . 8 10 Tactical Retreats 2 | . . 2 Traps | -11 -10 -9 ------- Run | Jun Mat Mat Traps Triggered . | . . . Indirectly . | . . . Trap Hack Attempts . | . . . Triggered . | . . . Disarmed . | . . . Reprogrammed . | . . . Reused . | . . . Traps Extracted . | . . . Installed . | . . . Triggered . | . . . Machines | -11 -10 -9 ---------- Run | Jun Mat Mat Machines Disabled . | . . . Max in Single Turn . | . . . Machines Repaired . | . . . Machines Sabotaged . | . . . Overloaded Fab Kills . | . . . Hacking | -11 -10 -9 --------- Run | Jun Mat Mat Machines Accessed 1 | . 1 . Terminals 1 | . 1 . Fabricators . | . . . Repair Stations . | . . . Recycling Units . | . . . Scanalyzers . | . . . Garrison Access . | . . . Total Hacks 1 | . 1 . Successful 1 | . 1 . Failed . | . . . Catastrophic . | . . . Database Lockouts . | . . . Manual 1 | . 1 . Terminals 1 | . 1 . Fabricators . | . . . Repair Stations . | . . . Recycling Units . | . . . Scanalyzers . | . . . Garrison Access . | . . . Terminal Hacks 1 | . 1 . Locate Traps 1 | . 1 . Fabricator Hacks . | . . . Repair Station Hacks . | . . . Recycling Unit Hacks . | . . . Scanalyzer . | . . . Garrison Access Hacks . | . . . Unauthorized Hacks . | . . . Terminals . | . . . Fabricators . | . . . Repair Stations . | . . . Recycling Units . | . . . Scanalyzers . | . . . Garrison Access . | . . . Data Cores Recovered . | . . . Used . | . . . Hacking Detections 1 | . 1 . Full Trace Events . | . . . Feedback Events . | . . . Feedback Blocked . | . . . Robot Schematics Acquired . | . . . Robots Built . | . . . Authchips . | . . . Time . | . . . Total Robot Build Rating . | . . . Part Schematics Acquired . | . . . Parts Built . | . . . Authchips . | . . . Time . | . . . Total Part Build Rating . | . . . Parts Repaired . | . . . Time . | . . . Parts Recycled . | . . . Recycled Matter . | . . . Retrieved Matter . | . . . Retrieved Components . | . . . Parts Scanalyzed . | . . . Part Schematics Acquired . | . . . Parts Damaged . | . . . Bothacking | -11 -10 -9 ------------ Run | Jun Mat Mat Used RIF Installer . | . . . Robots Hacked . | . . . Non-combat . | . . . Combat . | . . . Robot Hacks Applied . | . . . Relay Couplers Released . | . . . Fabnet Peak Effective % . | . . . Robots Rewired . | . . . Allies Hacked . | . . . Hacks Repelled . | . . . Allies | -11 -10 -9 -------- Run | Jun Mat Mat Total Allies . | . . . Largest Group . | . . . Highest-Rated Group . | . . . Highest-Rated Ally . | . . . Total Orders . | . . . Ally Attacks . | . . . Total Damage . | . . . Kills . | . . . Allies Corrupted . | . . . Allies Melted . | . . . Intel | -11 -10 -9 ------- Run | Jun Mat Mat Robot Analysis Total . | . . . Derelict Logs Recovered . | . . . Drone Launches . | . . . Drone Recoveries . | . . . Exploration | -11 -10 -9 ------------- Run | Jun Mat Mat Turns Passed 400 | 96 183 121 Spaces Moved 449 | 76 147 226 Core 95 | 12 . 83 Treads . | . . . Legs 146 | 64 82 . Wheels . | . . . Hover . | . . . Flight 208 | . 65 143 Fastest Speed 37 | 50 37 37 Average Speed 66 | 108 83 42 Slowest Speed 120 | 120 120 100 Overloaded Moves . | . . . Propulsion Burnouts . | . . . Robots Hopped . | . . . Cave-ins Triggered . | . . . Exploration Rate (%) 19 | 4 34 20 Regions Visited 2 Branch Regions . Pre-discovered Areas . | . . . Known Exits Taken . | . . . Unknown Exits Taken 2 | 1 1 . Scrap Searched . | . . . Spaces Dug . | . . . Terrain Destroyed . | . . . Melee . | . . . Projectile . | . . . AOE . | . . . Terrain Rammed . | . . . Walls Destroyed . | . . . Machines Disabled . | . . . Actions | -11 -10 -9 --------- Run | Jun Mat Mat Total 510 | 89 177 244 Wait . | . . . Move 447 | 75 146 226 Hop . | . . . Pick Up 14 | 8 4 2 Fast Attach . | . . . Attach 12 | 6 3 3 Detach 2 | . 2 . Swap . | . . . Drop 4 | . 4 . Fire 25 | . 18 7 Melee . | . . . Ram 6 | . . 6 Kick . | . . . Crush . | . . . Escape Stasis . | . . . Rewire . | . . . Trap . | . . . Miscellaneous . | . . . Route ------- -11/Junkyard -10/Materials -9/Materials History --------- Turn | Location | Event 4 | -11/Junkyard | Discovered new exit (range 15) 97 | -11/Junkyard | Entered Materials 261 | -10/Materials | Destroyed 7 combat bots 264 | -10/Materials | Discovered new exit (range 15) 280 | -10/Materials | Entered another Materials area 280 | -9/Materials | Evolved 2 slots: Propulsion x1, Utility x1 301 | -9/Materials | Build established: Mutant 385 | -9/Materials | Lost 6 parts (1p3n2w) 394 | -9/Materials | Core integrity fell below 50% 398 | -9/Materials | Core integrity fell below 20% 401 | -9/Materials | Destroyed by G-34 Mercenary with Small Laser Last Messages --------------- 00264_ EXIT=FOUND PARAMETERS=PROPULSION+1,UTILITY+1 LOCATION=UNKNOWN GOAL=ESCAPE 00314_ K-01 Serf collects debris. 00330_ S-10 Pest destroyed. 00330_ Switching to secondary target: G-34 Mercenary. 00331_ Assault Rifle destroyed. 00332_ Flight Unit destroyed. 00336_ S-10 Pest destroyed. 00343_ Lgt. Assault Rifle destroyed. 00344_ Acquired Flight Unit. 00345_ Lgt. Ion Engine destroyed. 00352_ K-01 Serf collects debris. 00353_ Acquired Visual Processing Unit. 00354_ Flight Unit destroyed. 00386_ K-01 Serf cleans the Processing Tank. 00393_ Slammed into G-34 Mercenary. 00394_ Slammed into B-36 Bruiser. 00398_ Destabilizing: Core damaged (-16). Map ----- +----------------------------------------------------+ | ?????????????????????????????????????????????? | | ???????????????????????#####?????????????????? | | ??????????????????#???? #?????????????????? | | ??????????????????# """ T #?????????????????? | | ??????????????????# """ #?????????????????? | | ??????????????????# """ #?????????????????? | | ??????????????????# #?????????????????? | | ??????????????????# """ #?????????????????? | | ???####???????? ?# """ #?????????????????? | | ???# #??????? ??# """ #?????????????????? | | ???# #######+##??# #?????????????????? | | ???# #######+#####?????????????????? | | ???# #???????????????????? | | ???# t ##########??????????? | | ???# """ """ """ # #??????????? | | ???# * """ """ """ #! """ #??????????? | | ???# =%[ """ """ """ # """ #??????????? | | ####/## # """ #??????????? | | # # + #??????????? | | #""" %# """ """ """ # """ #??????????? | | #""" # """ """ """ # """ #??????????? | | #""" # """ """ """ # """ #??????????? | | # # # #??????????? | | #""" / ##########??????????? | | #""" # """ a !! #???????????????????? | | #""" ## """ !!!@ ####????????????????? | | # ## """ !! !##???????????????? | | # ## a !#???????????????? | | # ## b !#???????????????? | | # ## ### ###% !#???????????????? | | ######## #?## ### #?#sgg !#???????????????? | | ???????# #??#+#?# #?# g !##???????????????? | | ???????# #?? ?# #?# g####????????????????? | | ??????? #? #u #?# #???????????????????? | | ??????? # # ###+##########???????????? | | ??????? ? # # #???????????? | | ?????? #"S # # """"" #???????????? | | ??????##+#""" + # """"" #???????????? | | ?????????#?"" # # """"" #???????????? | | ??????????? # # #???????????? | | ?????????#+###### ##############???????????? | | ?????????# #????????????????????????? | | ?????????+ #????????????????????????? | | ?????????# #????????????????????????? | | ?????????######## +????????????????????????? | | ????????????????# #????????????????????????? | | ????????????????# #????????????????????????? | | #########???##### #####+##?????????????????? | | # #???# #?????????????????? | | # """#???# +?????????????????? | +----------------------------------------------------+ Best States ------------- Heat Dissipation 28 Energy Generation 10 Energy Capacity 250 Matter Stores 300 Matter Capacity 300 Sight Range 18 Terrain Scan Density 10 Evasion (%) 62 Item Schematics ----------------- None Robot Schematics ------------------ None Fabricated ------------ Nothing Alien Tech Used ----------------- None Achievements -------------- None Challenges ------------ None Game ------ Seed NetworkCloakingAutogun Manual? 0 Play Time 00:09:51 Cumulative 14.4 hours Start 2024.01.28 @ 16:44:36 End 2024.01.28 @ 16:53:10 Sessions 1 Manual Loads 0 Difficulty Rogue Special Mode None Game No. 20 Rogue 20 Adventurer 0 Explorer 0 Win Type - Total 0 Types 0/0/0/0/0/0/0/0/0 Lore% 10 Gallery% 18 Achievement% 17 Wizard Run 0 Options --------- ASCII 0 Keyboard 0 Movement Arrows Keybinds 0 Fullscreen 1 Font 24/Proggy Map View 64x52 Tactical HUD 1 Map Filters NONE Filters NONE Steam 1 RUN: 688d5a30-a151-4e56-8f54-f83188a37a32